bitfinex/quotes_SOLUSD_20241209
["timestamp","ask_amount","ask_price","bid_price","bid_amount"]
[1733746127970,6.1719,227.4,227.32,0.65965303]
[1733746129874,6.1719,227.4,227.29,20.4477832]
[1733746130172,6.1719,227.4,227.3,0.6596929]
[1733746133148,6.1719,227.4,227.3,13.44564579]
[1733746133945,1.75239951,227.51,227.18,33.22949396]
[1733746133946,6.0998,227.36,227.21,6.08507868]
[1733746134151,20.0,227.33,227.16,12.78595289]
[1733746134347,0.82496803,227.32,227.17,0.30657623]
[1733746134873,0.82496803,227.32,227.18,12.78595289]
[1733746135181,0.82496803,227.32,227.19,0.30659952]
[1733746136550,20.0,227.33,227.2,20.47826056]
[1733746136754,20.0,227.33,227.15,20.47826056]
[1733746136755,20.0,227.33,227.22,20.47826056]
[1733746137075,6.0998,227.36,227.24,20.47826056]
[1733746137404,6.0998,227.36,227.25,0.30618112]
[1733746141365,0.82476481,227.35,227.19,20.47826056]
[1733746141556,20.0,227.33,227.2,0.30642852]
[1733746141979,20.0,227.33,227.2,20.78468908]
[1733746142164,20.0,227.33,227.21,20.47826056]
[1733746142366,20.0,227.33,227.22,0.30639101]
[1733746143570,20.0,227.33,227.22,20.78465157]
[1733746143887,20.0,227.33,227.22,0.30639101]
[1733746144055,20.0,227.33,227.21,0.30638089]
[1733746145659,20.0,227.33,227.21,20.78464145]
[1733746145962,0.82486592,227.32,227.19,20.47826056]
[1733746146169,0.82486592,227.32,227.17,0.30637201]
[1733746146170,0.82486592,227.32,227.17,20.78463257]
[1733746146966,20.0,227.28,227.13,20.78492999]
[1733746147079,0.8251651,227.27,227.13,20.78492999]
[1733746147266,6.0226,227.26,227.11,20.47826056]
[1733746147467,0.82524141,227.25,227.12,0.30712299]
[1733746147663,6.0226,227.26,227.12,0.30712299]
[1733746147664,6.0226,227.26,227.15,20.47826056]
[1733746147857,6.0226,227.26,227.16,0.30680234]
[1733746148158,7.5957,227.32,227.19,20.47826056]
[1733746148370,0.82496419,227.31,227.2,0.30656855]
[1733746148563,7.5957,227.32,227.2,0.30656855]
[1733746148974,0.82493099,227.31,227.2,0.30656855]
[1733746149694,0.82493099,227.31,227.16,20.47826056]
[1733746149899,0.82493099,227.31,227.18,20.47826056]
[1733746150203,0.82493099,227.31,227.19,0.30665535]
[1733746151072,20.0,227.29,227.14,20.47826056]
[1733746151285,0.82517218,227.28,227.13,20.78503936]
[1733746151502,0.82517218,227.28,227.13,0.3067788]
[1733746151793,0.82517218,227.28,227.11,20.47826056]
[1733746152036,0.82517218,227.28,227.12,0.30712195]
[1733746152493,20.0,227.2,227.05,20.78539016]
[1733746152707,0.82551059,227.19,227.05,0.3071296]
[1733746153108,23.776884,227.18,227.05,0.3071296]
[1733746153196,0.82552798,227.17,227.05,0.3071296]
[1733746153900,7.8764,227.16,227.05,0.3071296]
[1733746154190,7.8764,227.16,227.05,20.78539016]
[1733746154389,7.8764,227.16,227.07,20.47826056]
[1733746154664,7.8764,227.16,227.07,20.7858714]
[1733746154781,7.8764,227.16,227.08,0.30756992]
[1733746155186,7.8764,227.16,227.08,20.78583048]
[1733746155382,7.7896,227.29,227.08,20.78583048]
[1733746155699,0.82528243,227.28,227.08,20.78583048]
[1733746156109,0.82528243,227.28,227.11,20.47826056]
[1733746156321,0.82528243,227.28,227.12,20.7852722]
[1733746156488,0.82528243,227.28,227.14,20.47826056]
[1733746156695,0.82528243,227.28,227.15,20.78516479]
[1733746157003,7.7896,227.29,227.17,20.47826056]
[1733746157319,7.7896,227.29,227.18,0.30673208]
[1733746158220,7.7896,227.29,227.19,20.47826056]
[1733746158420,7.7896,227.29,227.21,20.47826056]
[1733746158713,8.0903,227.34,227.2,20.78467288]
[1733746158917,8.0903,227.34,227.22,0.30647955]
[1733746159732,8.0903,227.34,227.22,20.78474011]
[1733746160014,8.0903,227.34,227.22,0.30647955]
[1733746160711,8.0903,227.34,227.21,20.78468389]
[1733746161287,8.0903,227.34,227.22,20.47826056]
[1733746162600,8.0903,227.34,227.21,20.47826056]
[1733746162799,8.0903,227.34,227.22,0.30637049]
[1733746163827,8.0903,227.34,227.2,0.30639573]
[1733746164209,8.0903,227.34,227.2,20.78465629]
[1733746165003,8.0903,227.34,227.22,20.47826056]
[1733746165212,8.0903,227.34,227.23,0.30624504]
[1733746165437,8.0903,227.34,227.24,20.47826056]
[1733746165607,8.0903,227.34,227.25,0.30621247]
[1733746168024,7.7741,227.39,227.26,20.47826056]
[1733746168218,7.7741,227.39,227.27,20.78421299]
[1733746168407,7.7741,227.39,227.29,20.47826056]
[1733746168626,7.7741,227.39,227.3,0.30572369]
[1733746168934,7.7741,227.39,227.3,20.78398425]
[1733746169112,1.5725,227.44,227.31,20.47826056]
[1733746169315,1.5725,227.44,227.32,0.30551793]
[1733746169704,1.5725,227.44,227.36,20.47826056]
[1733746169905,1.5725,227.44,227.37,20.7836447]
[1733746170350,1.5725,227.44,227.37,0.30538414]
[1733746170910,1.5725,227.44,227.38,0.30523193]
[1733746171143,6.1844,227.45,227.38,0.30523193]
[1733746171335,6.1844,227.45,227.34,0.30519859]
[1733746171834,0.82443855,227.44,227.28,0.30551728]
[1733746173009,0.82443855,227.44,227.29,20.47826056]
[1733746173246,0.82443855,227.44,227.3,0.30574221]
[1733746174049,0.82443855,227.44,227.3,20.78400277]
[1733746174213,6.1844,227.45,227.33,20.47826056]
[1733746174412,6.1844,227.45,227.26,53.67826056]
[1733746174413,6.1844,227.45,227.34,20.78366904]
[1733746174922,6.1844,227.45,227.34,0.30540848]
[1733746175137,6.1844,227.45,227.34,20.78366904]
[1733746175340,6.1844,227.45,227.34,13.08639696]
[1733746176132,6.1844,227.45,227.34,0.30540848]
[1733746176657,0.82445361,227.44,227.32,0.3055474]
[1733746177437,0.82451772,227.44,227.32,0.3055474]
[1733746177638,6.1844,227.45,227.32,0.3055474]
[1733746177819,6.1844,227.45,227.34,12.78098848]
[1733746178139,6.1844,227.45,227.35,0.30542447]
[1733746179230,6.1844,227.45,227.36,12.78098848]
[1733746179436,6.1844,227.45,227.37,0.30528035]
[1733746180350,6.1844,227.45,227.37,13.08626883]
[1733746180549,1.5389,227.49,227.39,12.78098848]
[1733746180859,1.5389,227.49,227.4,13.08601011]
[1733746181668,1.5389,227.49,227.43,12.78098848]
[1733746181967,0.82417883,227.63,227.41,12.78098848]
[1733746181968,7.8053,227.62,227.41,12.78098848]
[1733746182152,7.8053,227.58,227.23,6.76949396]
[1733746182365,1.624,227.54,227.3,12.78098848]
[1733746182565,0.82446486,227.53,227.31,13.08655838]
[1733746182721,0.82446486,227.53,227.32,12.78098848]
[1733746182922,20.0,227.51,227.33,0.30546026]
[1733746183143,0.82442529,227.5,227.33,0.30546026]
[1733746183330,0.82442529,227.5,227.34,12.78098848]
[1733746183638,0.82442529,227.5,227.35,0.30524513]
[1733746184455,1.5259,227.49,227.33,23.776884]
[1733746184623,1.5259,227.49,227.35,0.30531522]
[1733746185046,1.5259,227.49,227.35,13.0863037]
[1733746185263,1.5259,227.49,227.35,20.75446584]
[1733746186025,0.82432824,227.48,227.35,20.75446584]
[1733746186231,0.82432824,227.48,227.35,0.30531522]
[1733746186532,0.82432824,227.48,227.34,0.30547477]
[1733746186533,6.5021,227.47,227.34,0.30547477]
[1733746186742,0.82450228,227.46,227.32,20.44915062]
[1733746187150,0.82450228,227.46,227.33,0.30569404]
[1733746188139,23.776884,227.45,227.3,40.44915062]
[1733746188354,23.776884,227.43,227.28,20.44915062]
[1733746188557,2.44056861,227.42,227.26,20.44915062]
[1733746188860,23.776884,227.39,227.24,20.75490597]
[1733746189066,20.0,227.37,227.24,20.75490597]
[1733746189232,0.82481754,227.36,227.24,0.30575535]
[1733746189428,23.776884,227.35,227.22,20.44915062]
[1733746189639,0.82487759,227.34,227.22,20.44915062]
[1733746189855,20.0,227.37,227.22,20.44915062]
[1733746189856,23.776884,227.35,227.22,20.44915062]
[1733746190210,0.82488262,227.34,227.22,20.44915062]
[1733746190328,0.82488262,227.34,227.23,0.3064055]
[1733746191960,20.0,227.37,227.23,0.3064055]
[1733746192162,0.8248202,227.36,227.23,0.3064055]
[1733746192666,1.547,227.34,227.2,20.44915062]
[1733746192970,1.547,227.34,227.16,20.75568359]
[1733746192971,29.977684,227.32,227.16,20.75568359]
[1733746193166,23.776884,227.3,227.16,0.30653297]
[1733746193378,23.776884,227.28,227.12,20.44915062]
[1733746193681,23.776884,227.26,227.12,20.44915062]
[1733746193883,1.5476,227.23,227.12,20.44915062]
[1733746194054,0.82529043,227.22,227.12,20.44915062]
[1733746194257,1.5476,227.23,227.12,20.44915062]
[1733746194646,1.5476,227.23,227.13,0.30717376]
[1733746195078,1.5476,227.23,227.14,20.44915062]
[1733746195268,1.5476,227.23,227.07,6.3972]
[1733746195269,1.5476,227.23,227.16,20.44915062]
[1733746195475,1.5476,227.23,227.17,0.30678249]
[1733746195684,1.5476,227.23,227.14,20.75597812]
[1733746196785,1.5476,227.23,227.15,0.30685749]
[1733746197761,1.5476,227.23,227.16,20.44915062]
[1733746198088,1.5476,227.23,227.17,0.30672469]
[1733746198991,1.5476,227.23,227.14,20.44915062]
[1733746199160,1.5476,227.23,227.15,0.30690434]
[1733746200596,1.5476,227.23,227.12,20.44915062]
[1733746200896,1.5476,227.23,227.13,0.30718145]
[1733746201921,1.5476,227.23,227.16,20.44915062]
[1733746202113,1.5476,227.23,227.17,0.30675232]
[1733746202433,1.5476,227.23,227.14,20.44915062]
[1733746202597,1.5476,227.23,227.15,0.3068868]
[1733746202803,1.5073,227.3,227.19,20.44915062]
[1733746203010,1.5073,227.3,227.2,0.30656653]
[1733746203194,1.5073,227.3,227.23,20.44915062]
[1733746203378,1.5073,227.3,227.24,0.30628909]
[1733746203995,6.2008,227.32,227.26,20.44915062]
[1733746204217,6.2008,227.32,227.27,0.30604868]
[1733746204512,1.5188,227.36,227.28,20.44915062]
[1733746204803,1.5188,227.36,227.3,20.44915062]
[1733746205003,6.2185,227.38,227.32,20.44915062]
[1733746205214,1.5188,227.42,227.33,0.30558467]
[1733746207468,1.5188,227.42,227.3,20.44915062]
[1733746207771,0.82457086,227.41,227.28,20.7549325]
[1733746208612,1.5188,227.42,227.3,20.44915062]
[1733746208926,1.5188,227.42,227.3,20.75494226]
[1733746209298,0.82457587,227.41,227.3,0.30579164]
[1733746209501,1.5188,227.42,227.3,0.30579164]
[1733746210180,1.5188,227.42,227.31,20.44915062]
[1733746210379,1.5188,227.42,227.32,0.3056666]
[1733746211000,1.5188,227.42,227.31,20.44915062]
[1733746211192,2.34336263,227.42,227.29,20.44915062]
[1733746211404,2.34336263,227.42,227.3,0.30580973]
[1733746211703,23.776884,227.41,227.25,20.44915062]
[1733746211915,23.776884,227.39,227.25,20.44915062]
[1733746212155,8.85058489,227.38,227.24,0.30580948]
[1733746212689,8.85058489,227.38,227.25,20.44915062]
[1733746212888,8.85058489,227.38,227.26,0.30614857]
[1733746214111,8.85058489,227.38,227.29,20.44915062]
[1733746214112,8.0258,227.38,227.29,20.44915062]
[1733746214400,8.0258,227.38,227.3,0.30584713]
[1733746216514,0.82464742,227.37,227.25,20.44915062]
[1733746216732,0.82464742,227.37,227.26,0.30616682]
[1733746216926,0.82464742,227.37,227.22,20.44915062]
[1733746217124,0.82464742,227.37,227.23,0.30633189]
[1733746217304,0.82464742,227.37,227.24,20.44915062]
[1733746217506,8.0258,227.38,227.25,0.3061037]
[1733746217796,0.82473881,227.37,227.25,0.3061037]
[1733746219081,0.82473881,227.37,227.24,20.44915062]
[1733746219212,0.82473881,227.37,227.25,0.30622325]
[1733746220943,8.0258,227.38,227.26,20.44915062]
[1733746221108,8.0258,227.38,227.28,20.44915062]
[1733746221315,8.0258,227.38,227.29,0.30593555]
[1733746222260,8.0258,227.38,227.3,20.44915062]
[1733746222408,8.0258,227.38,227.31,0.30575414]
[1733746223022,1.5973,227.43,227.31,0.30575414]
[1733746223227,2.42181969,227.43,227.31,0.30575414]
[1733746224009,1.5973,227.43,227.35,20.44915062]
[1733746224223,1.5973,227.43,227.36,0.30534705]
[1733746224433,1.5973,227.43,227.31,20.75455856]
[1733746224640,1.5973,227.43,227.31,0.30540794]
[1733746225142,1.5973,227.43,227.31,20.75455856]
[1733746225510,2.42181343,227.43,227.31,20.75455856]
[1733746225811,1.5973,227.43,227.31,0.30540794]
[1733746226017,1.5973,227.43,227.34,20.44915062]
[1733746226233,1.5973,227.43,227.35,0.30534402]
[1733746226445,8.0199,227.49,227.39,20.44915062]
[1733746226613,8.0199,227.49,227.32,24.1977]
[1733746226614,8.0199,227.49,227.4,0.30511946]
[1733746227266,8.0199,227.49,227.37,20.44915062]
[1733746227440,0.82425846,227.48,227.36,20.44915062]
[1733746227632,0.82425846,227.48,227.36,20.75445513]
[1733746227810,0.82425846,227.48,227.33,0.30530363]
[1733746228411,23.776884,227.47,227.33,0.30530363]
[1733746228620,0.82448317,227.46,227.33,0.30530363]
[1733746231756,23.776884,227.45,227.29,20.44915062]
[1733746231939,23.776884,227.43,227.27,20.44915062]
[1733746232241,2.42997459,227.42,227.28,0.30598936]
[1733746232822,6.5354,227.39,227.28,0.30598936]
[1733746233046,0.82475202,227.38,227.26,0.30614421]
[1733746233247,20.0,227.36,227.23,20.44915062]
[1733746233544,23.776884,227.34,227.17,0.30629049]
[1733746233713,1.72815376,227.4,227.12,20.44915062]
[1733746233714,1.5363,227.29,227.12,20.44915062]
[1733746233917,24.6020903,227.28,227.1,20.44915062]
[1733746234338,23.776884,227.26,227.1,20.44915062]
[1733746234547,0.82531986,227.25,227.1,20.44915062]
[1733746234751,0.82531986,227.25,227.11,0.30728464]
[1733746236232,0.82531986,227.25,227.03,18.6913]
[1733746236233,23.776884,227.24,227.08,20.44915062]
[1733746236445,23.776884,227.24,227.07,20.0]
[1733746236446,0.82536107,227.23,227.07,0.30736231]
[1733746236632,0.82536107,227.23,227.06,20.44915062]
[1733746236633,20.0,227.21,227.06,20.44915062]
[1733746236833,0.82546178,227.2,227.06,20.44915062]
[1733746237152,23.776884,227.2,227.04,20.75667541]
[1733746237447,7.926,227.18,227.04,20.75667541]
[1733746237753,7.926,227.18,227.06,20.44915062]
[1733746237935,7.926,227.18,227.06,20.75658715]
[1733746238115,7.926,227.18,227.08,20.44915062]
[1733746238315,7.926,227.18,227.09,0.30730845]
[1733746239185,6.2841,227.18,227.1,20.44915062]
[1733746239353,6.2841,227.18,227.11,0.30714182]
[1733746240479,6.2841,227.18,227.05,20.75634855]
[1733746240682,0.82542565,227.17,227.05,20.75634855]
[1733746241260,6.2841,227.18,227.06,20.44915062]
[1733746241462,6.2841,227.18,227.09,20.44915062]
[1733746241712,1.6591,227.24,227.04,20.44915062]
[1733746241713,1.6591,227.24,227.13,20.44915062]
[1733746241931,7.7004,227.24,227.14,20.75611813]
[1733746242052,7.7004,227.24,227.15,20.44915062]
[1733746242268,6.0413,227.24,227.18,20.44915062]
[1733746242558,6.0413,227.24,227.19,0.30664612]
[1733746243681,8.1436,227.3,227.21,20.44915062]
[1733746243858,8.1436,227.3,227.22,0.306442]
[1733746245591,8.1436,227.3,227.22,20.75559262]
[1733746246381,8.1436,227.3,227.22,0.306442]
[1733746246586,8.1436,227.3,227.21,0.30646871]
[1733746247063,0.82491446,227.29,227.16,20.44915062]
[1733746247392,0.82491446,227.29,227.17,0.30676608]
[1733746247767,0.82491446,227.29,227.14,0.30688895]
[1733746247768,23.776884,227.28,227.14,0.30688895]
[1733746247971,23.776884,227.28,227.17,20.0]
[1733746247972,0.82517168,227.27,227.17,20.0]
[1733746248584,0.82512771,227.29,227.17,20.0]
[1733746249104,23.776884,227.29,227.18,0.30681869]
[1733746249772,8.1436,227.3,227.19,20.44915062]
[1733746249973,8.1436,227.3,227.2,0.30658093]
[1733746250492,24.60190041,227.29,227.14,20.44915062]
[1733746251383,20.0,227.26,227.14,20.44915062]
[1733746251696,0.82517156,227.25,227.14,20.44915062]
[1733746251938,8.1436,227.3,227.21,20.44915062]
[1733746252199,8.1436,227.3,227.15,20.44915062]
[1733746252200,8.1436,227.3,227.23,20.44915062]
[1733746252398,8.1436,227.3,227.2,20.44915062]
[1733746252768,8.1436,227.3,227.19,20.75573631]
[1733746253304,0.82496406,227.29,227.19,0.30658569]
[1733746253522,20.0,227.23,227.11,20.44915062]
[1733746254597,20.0,227.23,227.12,0.30710393]
[1733746254810,0.82520084,227.25,227.13,20.44915062]
[1733746255014,20.0,227.27,227.16,20.44915062]
[1733746255385,0.82512148,227.26,227.16,20.44915062]
[1733746255913,0.82513236,227.26,227.16,20.44915062]
[1733746256093,0.82513236,227.26,227.14,20.44915062]
[1733746256489,0.82513236,227.26,227.15,0.30691818]
[1733746256683,20.0,227.27,227.15,0.30691818]
[1733746257016,0.82510067,227.26,227.15,0.30691818]
[1733746257627,20.0,227.27,227.15,20.7560688]
[1733746257912,8.1436,227.3,227.18,20.44915062]
[1733746258121,0.82503403,227.29,227.17,20.44915062]
[1733746258487,0.82503403,227.29,227.18,20.75594119]
[1733746258709,23.776884,227.28,227.18,20.75594119]
[1733746258915,0.82509863,227.27,227.18,0.30679057]
[1733746259507,0.82509863,227.27,227.17,0.30682783]
[1733746259718,23.776884,227.29,227.17,20.75597845]
[1733746259910,0.82506254,227.28,227.17,20.75597845]
[1733746260312,20.0,227.26,227.15,20.44915062]
[1733746260626,0.82518583,227.25,227.12,20.44915062]
[1733746260789,20.0,227.26,227.16,20.44915062]
[1733746261207,0.82515922,227.25,227.14,20.44915062]
[1733746261925,23.776884,227.24,227.1,20.44915062]
[1733746262217,8.1218,227.2,227.08,20.44915062]
[1733746262394,8.1218,227.2,227.1,20.44915062]
[1733746262597,8.1218,227.2,227.12,20.44915062]
[1733746262803,24.60211661,227.19,226.99,11.0132]
[1733746263019,24.60211661,227.19,227.05,20.44915062]
[1733746263216,20.0,227.16,227.03,20.44915062]
[1733746263512,0.82557955,227.15,227.03,20.44915062]
[1733746263904,23.776884,227.14,227.03,20.44915062]
[1733746264314,23.776884,227.14,226.9,14.93359396]
[1733746264315,20.0,227.08,226.96,20.75709914]
[1733746264436,0.82583946,227.07,226.96,20.75709914]
[1733746264775,7.7431,227.12,226.98,20.44915062]
[1733746264917,7.7431,227.12,227.0,20.44915062]
[1733746265595,0.82565398,227.11,227.0,20.44915062]
[1733746265791,7.7431,227.12,227.0,20.44915062]
[1733746266212,0.82566409,227.11,227.0,20.44915062]
[1733746267423,0.82574883,227.09,226.98,20.44915062]
[1733746268094,20.0,227.09,226.98,20.7572992]
[1733746268296,0.82571802,227.1,226.98,20.7572992]
[1733746268712,7.7431,227.12,227.0,20.44915062]
[1733746269007,7.7431,227.12,227.02,20.44915062]
[1733746269837,7.7431,227.12,227.01,0.30778578]
[1733746270400,7.7431,227.12,227.02,20.44915062]
[1733746271109,0.82560789,227.11,227.0,20.44915062]
[1733746271510,7.7431,227.12,227.01,0.30808623]
[1733746271726,7.7431,227.12,227.02,20.44915062]
[1733746271908,7.7431,227.12,227.03,0.30776281]
[1733746272512,7.7431,227.12,227.04,20.44915062]
[1733746272716,7.89,227.26,227.08,20.44915062]
[1733746273036,7.89,227.24,227.04,20.44915062]
[1733746273235,1.505,227.21,227.0,20.44915062]
[1733746273409,0.82565552,227.2,227.0,20.44915062]
[1733746273606,6.385,227.19,227.0,20.44915062]
[1733746273805,0.82569288,227.18,227.0,20.44915062]
[1733746274134,20.0,227.16,227.02,20.44915062]
[1733746274301,23.776884,227.14,227.02,20.44915062]
[1733746274504,23.776884,227.14,227.03,0.30784744]
[1733746274698,0.82560364,227.15,227.03,0.30784744]
[1733746274906,23.776884,227.18,227.06,20.44915062]
[1733746275204,0.82545187,227.17,227.06,20.44915062]
[1733746275637,0.82545187,227.17,227.04,20.44915062]
[1733746276227,20.0,227.15,227.03,0.30784744]
[1733746276425,0.82558769,227.14,227.03,0.30784744]
[1733746276643,1.505,227.13,227.0,20.44915062]
[1733746277218,0.82560748,227.12,227.0,20.44915062]
[1733746279520,23.776884,227.11,226.98,20.44915062]
[1733746279717,30.150384,227.09,226.96,20.75700575]
[1733746280034,20.0,227.06,226.94,20.44915062]
[1733746280236,0.82590909,227.05,226.92,20.44915062]
[1733746280425,1.5447,227.03,226.92,20.44915062]
[1733746280635,2.37069706,227.03,226.9,20.44915062]
[1733746280847,2.37069706,227.03,226.91,0.30865676]
[1733746281049,2.37069706,227.03,226.92,20.44915062]
[1733746281251,1.5447,227.03,226.94,20.44915062]
[1733746281458,1.5447,227.03,226.96,20.44915062]
[1733746281635,7.9339,227.09,226.98,20.44915062]
[1733746281826,7.9339,227.09,227.0,20.44915062]
[1733746282024,7.9339,227.09,227.02,20.44915062]
[1733746282237,7.9339,227.09,227.03,0.30782194]
[1733746282519,1.5604,227.09,227.03,0.30782194]
[1733746282941,1.5604,227.09,227.0,20.44915062]
[1733746283152,1.5604,227.09,226.98,40.75695835]
[1733746283341,0.82573997,227.08,226.98,20.75695835]
[1733746283527,0.82573997,227.08,226.98,20.44915062]
[1733746283730,0.82573997,227.08,226.96,20.44915062]
[1733746283923,23.776884,227.07,226.94,20.75736508]
[1733746284125,0.82591023,227.06,226.94,20.75736508]
[1733746284343,0.82591023,227.06,226.94,0.30821446]
[1733746284743,0.82591023,227.06,226.94,20.44915062]
[1733746285424,0.82591023,227.06,226.95,0.30841414]
[1733746285759,1.5604,227.09,226.96,20.44915062]
[1733746285927,1.5604,227.09,226.98,20.44915062]
[1733746286123,1.5604,227.09,227.0,20.44915062]
[1733746286643,1.5604,227.09,226.98,20.44915062]
[1733746286855,24.60267262,227.08,226.94,20.75721162]
[1733746287030,24.60267262,227.08,226.92,20.44915062]
[1733746287228,20.0,227.04,226.92,20.44915062]
[1733746287434,0.82592764,227.03,226.92,20.44915062]
[1733746287633,0.8259704,227.06,226.94,20.44915062]
[1733746287837,23.776884,227.05,226.94,20.44915062]
[1733746288037,23.776884,227.03,226.92,20.44915062]
[1733746288240,23.776884,227.06,226.94,20.44915062]
[1733746288438,0.82589521,227.05,226.94,20.44915062]
[1733746288657,23.776884,227.06,226.95,0.30845662]
[1733746288823,6.3737,227.07,226.96,20.44915062]
[1733746289024,6.3737,227.07,226.98,20.44915062]
[1733746289229,6.3737,227.07,226.99,0.30821255]
[1733746289766,6.3737,227.07,227.0,20.44915062]
[1733746290334,6.3737,227.07,227.0,20.75715418]
[1733746290530,1.5604,227.09,227.02,20.44915062]
[1733746290840,6.3211,227.13,227.04,20.44915062]
[1733746292155,6.3211,227.13,227.05,0.30777758]
[1733746294962,1.5236,227.14,227.06,20.44915062]
[1733746295142,1.5236,227.14,227.07,0.30748812]
[1733746296051,6.4745,227.18,227.08,20.44915062]
[1733746296256,6.4745,227.18,227.1,20.44915062]
[1733746296448,6.4745,227.18,227.11,0.30720039]
[1733746297072,1.6216,227.2,227.12,20.44915062]
[1733746297261,1.6216,227.2,227.04,20.44915062]
[1733746297262,6.4745,227.23,227.14,20.44915062]
[1733746297471,6.4745,227.23,227.15,0.30692441]
[1733746298882,1.6216,227.25,227.18,20.44915062]
[1733746299175,1.6216,227.25,227.19,0.30668712]
[1733746299781,6.4745,227.28,227.2,20.44915062]
[1733746299977,6.4745,227.28,227.21,0.30648513]
[1733746301481,0.82496091,227.27,227.15,0.30656199]
[1733746301779,6.4745,227.28,227.15,0.30656199]
[1733746302080,6.4745,227.28,227.17,20.44915062]
[1733746302269,6.4745,227.28,227.18,0.30664644]
[1733746302845,6.4745,227.28,227.19,20.44915062]
[1733746303046,6.4745,227.28,227.2,0.30649387]
[1733746303674,1.5613,227.31,227.21,20.44915062]
[1733746303875,1.5613,227.31,227.22,0.30629429]
[1733746304371,1.5613,227.31,227.23,20.44915062]
[1733746304581,6.1384,227.34,227.25,20.44915062]
[1733746304743,6.1384,227.34,227.26,0.30606694]
[1733746306173,11.60038275,227.5,227.32,20.44915062]
[1733746306174,8.0265,227.43,227.32,20.44915062]
[1733746306976,8.0265,227.43,227.33,0.30571699]
[1733746308192,8.0265,227.43,227.34,20.44915062]
[1733746308387,8.0265,227.43,227.36,20.44915062]
[1733746308601,8.0265,227.43,227.37,0.30533253]
[1733746308892,1.6385,227.48,227.37,0.30533253]
[1733746309057,7.9934,227.45,227.24,0.30528611]
[1733746309262,1.6385,227.43,227.22,20.44915062]
[1733746309485,6.3549,227.41,227.22,20.44915062]
[1733746309830,20.0,227.36,227.2,20.44915062]
[1733746309995,20.0,227.32,227.2,20.44915062]
[1733746310211,20.0,227.32,227.18,20.44915062]
[1733746310212,0.82496079,227.31,227.18,20.44915062]
[1733746310376,7.9247,227.3,227.18,20.44915062]
[1733746310558,20.0,227.27,227.14,20.75570442]
[1733746310759,0.8251415,227.26,227.14,20.75570442]
[1733746311186,23.776884,227.25,227.14,20.75570442]
[1733746311371,20.0,227.27,227.16,20.44915062]
[1733746311559,20.0,227.27,227.17,0.30675754]
[1733746312660,7.9247,227.3,227.2,20.44915062]
[1733746312877,7.9247,227.3,227.21,0.30653764]
[1733746314278,7.9247,227.3,227.24,20.44915062]
[1733746314502,49.52441371,227.61,227.24,20.44915062]
[1733746314503,8.1939,227.35,227.24,20.44915062]
[1733746314904,8.1939,227.35,227.26,20.44915062]
[1733746315105,8.1939,227.35,227.28,20.44915062]
[1733746316371,8.1939,227.35,227.2,0.30594545]
[1733746316372,8.1939,227.35,227.26,20.44915062]
[1733746316796,8.1939,227.35,227.27,0.30607183]
[1733746316995,7.9082,227.41,227.28,20.44915062]
[1733746317200,20.0,227.38,227.29,0.30581055]
[1733746317511,7.9082,227.41,227.3,20.44915062]
[1733746317672,7.9082,227.41,227.31,0.30574227]
[1733746319498,20.0,227.38,227.28,20.44915062]
[1733746319837,23.776884,227.36,227.22,20.44915062]
[1733746319994,0.82484773,227.35,227.22,20.44915062]
[1733746320482,20.0,227.38,227.26,20.44915062]
[1733746320687,20.0,227.34,227.24,20.44915062]
[1733746320905,20.0,227.34,227.25,0.30626412]
[1733746321109,20.0,227.34,227.26,20.44915062]
[1733746321430,23.776884,227.37,227.27,0.30606589]
[1733746321594,0.82481985,227.36,227.24,20.44915062]
[1733746321927,0.82481985,227.36,227.25,0.30626496]
[1733746322232,20.0,227.34,227.24,20.44915062]
[1733746322430,20.0,227.34,227.22,20.75536901]
[1733746322641,0.82485099,227.33,227.22,20.44915062]
[1733746322990,20.0,227.29,227.16,20.75558447]
[1733746323220,24.60197732,227.28,227.14,20.44915062]
[1733746323932,20.0,227.21,227.1,20.44915062]
[1733746324090,23.776884,227.19,227.06,20.44915062]
[1733746324293,20.0,227.14,227.02,20.44915062]
[1733746324907,0.8255811,227.13,227.02,20.44915062]
[1733746325214,0.82561273,227.15,227.02,20.44915062]
[1733746326018,0.82561273,227.15,227.06,20.44915062]
[1733746326192,0.82539964,227.18,227.06,20.44915062]
[1733746326514,20.0,227.16,227.04,20.44915062]
[1733746326693,0.82559289,227.15,227.02,20.44915062]
[1733746327819,0.82560488,227.16,227.04,20.44915062]
[1733746328022,8.081,227.2,227.06,20.44915062]